bitfinex/quotes_ETHUSD_20220105
["timestamp","ask_amount","ask_price","bid_price","bid_amount"]
[1641391172144,0.95531,3815.1,3814.8,0.0022737]
[1641391172145,0.6,3815.1,3814.8,0.0022737]
[1641391172336,1.0375413,3815.0,3814.8,0.0022737]
[1641391172537,1.6930913,3815.0,3814.8,0.0022737]
[1641391172737,1.22287772,3814.9,3814.8,0.0022737]
[1641391172938,2.26041772,3814.9,3814.6,0.00341054]
[1641391173139,0.65547,3814.8,3814.6,0.00341054]
[1641391173340,0.382,3814.7,3814.6,0.00341054]
[1641391173538,0.682,3814.7,3814.4,0.00454739]
[1641391173942,1.96657,3815.0,3814.4,0.00454739]
[1641391174239,0.3859783,3815.3,3814.6,2.17268862]
[1641391174438,0.0039783,3815.3,3814.6,2.17268862]
[1641391174637,0.0039783,3815.3,3814.7,0.00284212]
[1641391175038,0.53101396,3815.2,3814.7,0.00284212]
[1641391175238,0.53101396,3815.2,3814.6,0.00341054]
[1641391175239,0.65536,3815.1,3814.6,0.00341054]
[1641391175439,0.3,3815.1,3814.6,0.00341054]
[1641391175875,0.382,3815.0,3814.6,0.00341054]
[1641391176277,0.65545,3814.9,3814.4,0.00454739]
[1641391176479,0.65545,3814.9,3814.7,2.17268862]
[1641391176480,2.09005807,3814.8,3814.7,2.17268862]
[1641391176680,1.43452807,3814.8,3814.7,2.17268862]
[1641391176882,2.43452807,3814.8,3814.7,2.17268862]
[1641391177280,2.43452807,3814.8,3814.3,2.17268862]
[1641391177479,0.65551,3814.6,3814.3,2.17268862]
[1641391177680,0.65551,3814.6,3814.4,0.00454739]
[1641391177879,0.5384392,3814.5,3814.4,0.00454739]
[1641391178080,0.5384392,3814.5,3814.0,0.00682108]
[1641391178282,1.13748659,3814.2,3814.0,0.00682108]
[1641391178480,0.5384392,3814.5,3814.0,0.00682108]
[1641391179282,0.5384392,3814.5,3814.0,0.66226108]
[1641391179482,1.93104038,3814.5,3814.0,0.66226108]
[1641391179735,1.93104038,3814.5,3814.1,0.00625266]
[1641391180936,2.58650038,3814.5,3814.1,0.00625266]
[1641391183138,1.31099,3814.7,3814.1,0.00625266]
[1641391183139,0.65543,3814.7,3814.1,0.00625266]
[1641391183775,0.65543,3814.7,3814.5,1.29996502]
[1641391184180,2.32931776,3814.7,3814.6,0.00341054]
[1641391185582,2.32931776,3814.7,3814.5,0.00397897]
[1641391188130,1.75278422,3814.7,3814.5,0.00397897]
[1641391189534,0.64032252,3814.6,3814.5,0.00397897]
[1641391190976,0.65549,3814.5,3814.3,0.00511581]
[1641391192180,0.00080395,3814.4,3814.3,0.00511581]
[1641391193178,0.00080395,3814.4,3814.3,2.97305877]
[1641391194287,0.00080395,3814.4,3814.3,4.27302379]
[1641391196231,0.00080395,3814.4,3814.3,2.97305877]
[1641391200884,0.00080395,3814.4,3814.3,4.70618158]
[1641391202135,0.00080395,3814.4,3814.3,5.76760395]
[1641391202935,0.00308276,3814.8,3814.4,6.05]
[1641391203134,0.00308276,3814.8,3814.5,3.07159754]
[1641391204140,0.00308276,3814.8,3814.6,0.5897845]
[1641391204340,0.00308276,3814.8,3814.6,3.55772746]
[1641391204539,0.00308276,3814.8,3814.6,2.96794296]
[1641391205340,1.34913007,3815.3,3814.6,2.96794296]
[1641391205540,1.34913007,3815.3,3814.7,2.96794296]
[1641391205975,0.65539,3814.9,3814.7,2.96794296]
[1641391206181,0.65539,3814.9,3814.5,2.38364787]
[1641391206683,0.65539,3814.9,3814.6,0.00341054]
[1641391207080,0.65539,3814.9,3814.7,1.29593182]
[1641391207279,0.67939429,3815.1,3814.7,1.29593182]
[1641391207479,1.33475429,3815.1,3814.8,0.0022737]
[1641391209281,0.06339647,3815.0,3814.8,0.0022737]
[1641391209480,0.65539,3814.9,3814.8,0.0022737]
[1641391214076,0.65539,3814.9,3814.7,2.97038471]
[1641391214279,0.65539,3814.9,3814.8,0.0022737]
[1641391214679,0.78218294,3814.9,3814.8,0.0022737]
[1641391215982,0.78218294,3814.9,3814.7,0.00284212]
[1641391216684,5.78218294,3814.9,3814.7,0.00284212]
[1641391216883,5.78218294,3814.9,3814.7,2.97038471]
[1641391217350,5.78218294,3814.9,3814.8,0.0022737]
[1641391217551,6.47698294,3814.9,3814.8,0.0022737]
[1641391217746,6.77698294,3814.9,3814.7,0.00284212]
[1641391218548,5.91109,3814.8,3814.7,0.00284212]
[1641391218950,1.31109,3814.8,3814.7,0.00284212]
[1641391219349,1.31109,3814.8,3814.3,0.00511581]
[1641391219553,0.5218641,3814.5,3814.3,0.00511581]
[1641391219954,0.12679294,3814.4,3814.3,0.00511581]
[1641391220752,0.12679294,3814.4,3814.1,1.88586122]
[1641391220753,0.12679294,3814.4,3814.2,0.00568424]
[1641391221781,0.78228294,3814.4,3814.2,0.00568424]
[1641391222982,0.12679294,3814.4,3814.2,0.00568424]
[1641391224934,0.06339647,3814.4,3814.3,1.29557251]
[1641391225133,0.65336357,3814.8,3814.3,1.29557251]
[1641391225333,0.12679294,3814.4,3814.3,1.30068832]
[1641391225536,0.12679294,3814.4,3814.3,1.29557251]
[1641391227236,0.12679294,3814.4,3814.1,0.65544]
[1641391227535,0.12679294,3814.4,3814.2,0.00568424]
[1641391228135,0.12679294,3814.4,3814.3,0.03119657]
[1641391228584,0.12679294,3814.4,3814.3,0.03631238]
[1641391232433,5.12679294,3814.4,3814.3,0.03631238]
[1641391233934,5.12679294,3814.4,3814.3,3.00433644]
[1641391234136,5.12679294,3814.4,3814.3,3.30433644]
[1641391236188,5.12679294,3814.4,3814.3,3.00433644]
[1641391236389,5.12679294,3814.4,3814.3,3.30433644]
[1641391236787,5.12679294,3814.4,3814.3,3.60433644]
[1641391239189,5.12679294,3814.4,3814.3,3.30433644]
[1641391239389,5.12679294,3814.4,3814.3,3.60433644]
[1641391240240,5.12679294,3814.4,3814.3,0.63631238]
[1641391240640,5.12679294,3814.4,3814.3,7.13631238]
[1641391241041,5.12679294,3814.4,3814.3,6.83631238]
[1641391241645,5.12679294,3814.4,3814.3,9.80401757]
[1641391241841,1.56554671,3814.4,3814.3,9.80401757]
[1641391242442,1.56554671,3814.4,3814.3,3.00401757]
[1641391242645,1.56554671,3814.4,3814.3,6.47801883]
[1641391244199,1.56554671,3814.4,3814.3,3.00401757]
[1641391244798,1.56554671,3814.4,3814.3,3.30401757]
[1641391245000,1.56554671,3814.4,3814.3,3.60401757]
[1641391253190,1.56554671,3814.4,3814.3,3.00401757]
[1641391254640,1.56554671,3814.4,3814.3,3.60401757]
[1641391257846,1.56554671,3814.4,3814.3,3.30401757]
[1641391258487,1.56554671,3814.4,3814.3,3.29890176]
[1641391259792,1.56554671,3814.4,3814.3,2.99890176]
[1641391260792,1.56554671,3814.4,3814.3,3.59890176]
[1641391265244,1.56554671,3814.4,3814.3,4.76653914]
[1641391267304,1.56554671,3814.4,3814.3,7.42739985]
[1641391267503,1.56554671,3814.4,3814.3,10.89017594]
[1641391267708,0.00308276,3815.0,3814.4,6.85]
[1641391267899,0.00308276,3815.0,3814.6,0.77313]
[1641391268099,0.00308276,3815.0,3814.9,5.05403334]
[1641391268300,0.00308276,3815.0,3814.9,0.7519]
[1641391268501,2.80982792,3815.5,3814.9,1.35360527]
[1641391268702,3.34135652,3815.6,3815.2,0.5242693]
[1641391268905,0.00113684,3815.4,3815.3,0.95533]
[1641391269941,0.00113684,3815.4,3815.3,0.6]
[1641391270542,0.00113684,3815.4,3815.3,3.56770519]
[1641391270743,0.00113684,3815.4,3815.3,3.26770519]
[1641391271142,0.00113684,3815.4,3815.3,4.56946565]
[1641391272642,0.00113684,3815.4,3815.3,3.26770519]
[1641391273491,0.00196027,3815.4,3815.3,2.96770519]
[1641391273698,0.00196027,3815.4,3815.3,3.26770519]
[1641391275297,0.00196027,3815.4,3815.3,3.29903387]
[1641391275498,0.00196027,3815.4,3815.3,2.99903387]
[1641391275899,0.00196027,3815.4,3815.3,3.29903387]
[1641391276802,0.00196027,3815.4,3815.3,4.60079433]
[1641391277740,0.00196027,3815.4,3815.3,4.30079433]
[1641391278746,0.00196027,3815.4,3815.3,4.60079433]
[1641391278941,0.00196027,3815.4,3815.3,4.90079433]
[1641391279540,0.00196027,3815.4,3815.3,3.59903387]
[1641391280343,0.00196027,3815.4,3815.3,4.90079433]
[1641391280747,0.00196027,3815.4,3815.3,5.42504133]
[1641391281788,0.00196027,3815.4,3815.3,5.12504133]
[1641391282586,0.00196027,3815.4,3815.3,4.60079433]
[1641391282786,0.00196027,3815.4,3815.3,4.30079433]
[1641391283793,0.00196027,3815.4,3815.3,2.99903387]
[1641391286343,0.00196027,3815.4,3815.3,3.52328447]
[1641391287446,0.00196027,3815.4,3815.3,5.5129689]
[1641391287644,0.00196027,3815.4,3815.3,5.8129689]
[1641391288688,0.00196027,3815.4,3815.3,4.40628447]
[1641391288888,0.00196027,3815.4,3815.3,8.03098559]
[1641391289091,3.34135652,3815.6,3815.3,8.03098559]
[1641391289287,3.34135652,3815.6,3815.3,9.07933219]
[1641391289488,3.34135652,3815.6,3815.4,0.5241672]
[1641391289891,3.34135652,3815.6,3815.5,0.3]
[1641391290093,3.34135652,3815.6,3815.4,0.5241672]
[1641391290293,3.34249337,3815.6,3815.4,0.5241672]
[1641391290695,3.34249337,3815.6,3815.5,2.96770519]
[1641391291898,3.34249337,3815.6,3815.4,4.25922974]
[1641391292343,3.34249337,3815.6,3815.5,2.96770519]
[1641391293047,3.34249337,3815.6,3815.5,3.26770519]
[1641391293648,3.34249337,3815.6,3815.5,0.3]
[1641391293844,3.34249337,3815.6,3815.4,3.26770519]
[1641391294044,3.34249337,3815.6,3815.4,2.96770519]
[1641391294244,3.34249337,3815.6,3815.5,2.96770519]
[1641391295245,3.34249337,3815.6,3815.5,2.99906346]
[1641391295446,3.34249337,3815.6,3815.5,0.03135827]
[1641391295894,3.34249337,3815.6,3815.5,2.99906346]
[1641391296888,3.34249337,3815.6,3815.5,1.75381331]
[1641391297492,3.34249337,3815.6,3815.5,2.99906346]
[1641391299497,3.34249337,3815.6,3815.5,4.28999771]
[1641391301839,3.34249337,3815.6,3815.5,2.99906346]
[1641391304187,3.34249337,3815.6,3815.5,3.29906346]
[1641391304992,3.34249337,3815.6,3815.5,2.99906346]
[1641391305893,3.34249337,3815.6,3815.5,4.7215185]
[1641391308039,3.34249337,3815.6,3815.5,2.99906346]
[1641391308536,3.34249337,3815.6,3815.5,3.29906346]
[1641391310742,3.34249337,3815.6,3815.5,2.99906346]
[1641391310989,3.34249337,3815.6,3815.5,3.29906346]
[1641391311190,3.34249337,3815.6,3815.5,2.99906346]
[1641391311393,3.34249337,3815.6,3815.5,3.29906346]
[1641391311590,3.34249337,3815.6,3815.5,2.99906346]
[1641391312396,3.34249337,3815.6,3815.5,4.28625659]
[1641391313397,3.34249337,3815.6,3815.5,3.29906346]
[1641391313697,3.34473074,3815.6,3815.5,3.29906346]
[1641391314741,3.34696811,3815.6,3815.5,3.29906346]
[1641391315141,3.34696811,3815.6,3815.5,4.58551369]
[1641391315741,3.34920548,3815.6,3815.5,4.58551369]
[1641391316344,3.34920548,3815.6,3815.5,3.29906346]
[1641391316544,3.34920548,3815.6,3815.5,6.04004112]
[1641391316847,3.35144285,3815.6,3815.5,3.29906346]
[1641391317845,3.35368022,3815.6,3815.5,5.0215185]
[1641391318243,3.35368022,3815.6,3815.5,2.05381331]
[1641391318899,3.35591759,3815.6,3815.5,2.05381331]
[1641391319095,3.35591759,3815.6,3815.5,7.70454627]
[1641391319296,3.35591759,3815.6,3815.5,8.00454627]
[1641391319499,3.35591759,3815.6,3815.5,5.3215185]
[1641391319898,3.35815496,3815.6,3815.5,5.0215185]
[1641391320297,3.35701811,3815.6,3815.5,5.0215185]
[1641391320896,3.35925548,3815.6,3815.5,5.0215185]
[1641391322141,3.36149285,3815.6,3815.5,5.0215185]
[1641391323038,3.36373022,3815.6,3815.5,5.0215185]
[1641391324045,3.36596759,3815.6,3815.5,5.0215185]
[1641391324447,3.36596759,3815.6,3815.5,7.82992397]
[1641391324652,3.36596759,3815.6,3815.5,5.0215185]
[1641391325047,3.36820496,3815.6,3815.5,5.0215185]
[1641391325648,3.5579402,3816.1,3815.7,0.19165545]
[1641391325891,3.5579402,3816.1,3816.0,1.20126784]
[1641391326094,3.5579402,3816.1,3816.0,1.50126784]
[1641391326291,3.5079402,3816.1,3816.0,0.3]
[1641391326494,3.51017757,3816.1,3815.7,0.49165545]
[1641391326693,3.51017757,3816.1,3815.7,0.19165545]
[1641391326892,0.00341054,3816.0,3815.9,1.0482666]
[1641391327092,0.00341054,3816.0,3815.9,1.3482666]
[1641391327493,0.00341054,3816.0,3815.9,4.31597179]
[1641391327692,0.00564791,3816.0,3815.9,4.31597179]
[1641391328693,0.00788528,3816.0,3815.9,4.31597179]
[1641391329746,0.01012265,3816.0,3815.9,6.01849439]
[1641391329951,0.00788528,3816.0,3815.9,4.31597179]
[1641391331849,0.01012265,3816.0,3815.9,4.31597179]
[1641391332049,0.00788528,3816.0,3815.9,4.31597179]
[1641391332251,0.00788528,3816.0,3815.9,4.26597179]
[1641391332552,0.00788528,3816.0,3815.9,7.06635795]
[1641391332752,0.00788528,3816.0,3815.9,6.9689088]
[1641391333151,0.00788528,3816.0,3815.9,6.96134049]
[1641391333397,1.75340093,3816.1,3816.0,4.1]
[1641391333595,1.75340093,3816.1,3816.0,7.50125244]
[1641391333795,1.75340093,3816.1,3816.0,4.6240637]
[1641391334596,1.75340093,3816.1,3816.0,7.59176889]
[1641391336600,1.75340093,3816.1,3816.0,10.35917635]
[1641391336801,6.75340093,3816.1,3816.0,10.35917635]
[1641391337240,3.63795657,3816.1,3816.0,14.10917635]
[1641391337540,3.63795657,3816.1,3816.0,26.44862568]
[1641391337942,3.63795657,3816.1,3816.0,23.02727635]
[1641391338143,3.7358372,3816.5,3816.0,23.02727635]
[1641391338144,3.12115912,3816.5,3816.1,1.38794686]
[1641391338347,0.01320373,3816.8,3816.5,0.65484]
[1641391338544,0.01320373,3816.8,3816.6,5.12243033]
[1641391338742,0.01320373,3816.8,3816.7,7.8602]
[1641391338941,0.01320373,3816.8,3816.7,8.2422]
[1641391339147,0.01775112,3816.8,3816.7,9.5422]
[1641391340145,3.88838012,3817.0,3816.8,4.95]
[1641391340351,3.88838012,3817.0,3816.9,12.1418]
[1641391340545,3.88838012,3817.0,3816.9,12.4418]
[1641391340748,3.88838012,3817.0,3816.9,9.5418]
[1641391340749,3.88951697,3817.0,3816.9,9.5418]
[1641391340997,3.88951697,3817.0,3816.9,8.1598]
[1641391341497,3.88951697,3817.0,3816.9,14.54004647]
[1641391341498,0.33074696,3817.0,3816.9,14.54004647]
[1641391342103,0.33074696,3817.0,3816.9,15.54004647]
[1641391342300,0.33074696,3817.0,3816.9,12.60870519]
[1641391342800,0.33074696,3817.0,3816.9,12.60790519]
[1641391343004,0.33074696,3817.0,3816.9,12.50950519]
[1641391343800,0.33074696,3817.0,3816.9,11.50950519]
[1641391344006,0.33074696,3817.0,3816.9,11.12750519]
[1641391344210,0.33074696,3817.0,3816.9,10.83772116]
[1641391344850,0.33074696,3817.0,3816.9,12.54803608]
[1641391346154,0.33074696,3817.0,3816.9,12.84803608]
[1641391346555,0.331662,3817.0,3816.9,11.13772116]
[1641391346754,0.331662,3817.0,3816.9,10.83772116]
[1641391347453,0.331662,3817.0,3816.9,10.86925521]
[1641391350107,0.331662,3817.0,3816.9,12.58080559]
[1641391350906,0.331662,3817.0,3816.9,10.86925521]
[1641391351408,0.27824709,3817.0,3816.9,10.86925521]
[1641391351606,0.27824709,3817.0,3816.9,12.58326052]
[1641391352851,0.27824709,3817.0,3816.9,10.86925521]
[1641391353452,0.27824709,3817.0,3816.9,12.582666]
[1641391355059,0.27824709,3817.0,3816.9,10.86925521]
[1641391357892,0.27824709,3817.0,3816.9,13.70789225]
[1641391358093,0.27824709,3817.0,3816.9,10.86925521]
[1641391358293,0.27824709,3817.0,3816.9,13.62336846]
[1641391358496,0.65491,3817.2,3817.0,4.45]
[1641391358695,4.12228758,3817.4,3817.0,4.45]
[1641391359094,0.00170527,3817.3,3817.0,4.45]
[1641391359392,0.00113685,3817.2,3817.0,4.45]
[1641391359641,0.00113685,3817.2,3817.0,5.497655]
[1641391359847,0.00113685,3817.2,3817.1,3.26770519]
[1641391360446,0.00113685,3817.2,3817.1,4.26770519]
[1641391360746,0.00113685,3817.2,3817.1,6.93456814]
[1641391361150,0.00113685,3817.2,3817.1,4.26770519]
[1641391361347,0.00113685,3817.2,3817.1,6.87370531]
[1641391363386,0.00113685,3817.2,3817.1,5.87370531]
[1641391363586,0.00113685,3817.2,3817.1,3.26770519]
[1641391363986,0.00113685,3817.2,3817.1,6.99399814]
[1641391364794,0.00113685,3817.2,3817.1,7.82009814]
[1641391364994,0.00113685,3817.2,3817.1,8.88252361]
[1641391365193,0.00113685,3817.2,3817.1,17.23010992]
[1641391365795,0.00113685,3817.2,3817.1,17.88498992]
[1641391365997,4.12228758,3817.4,3817.3,3.75]
[1641391366197,4.12228758,3817.4,3817.3,6.51880935]
[1641391366500,4.12342442,3817.4,3817.3,7.81880935]
[1641391367144,4.12342442,3817.4,3817.3,10.78651454]
[1641391367946,4.12428355,3817.4,3817.3,11.44124454]
[1641391368749,4.12428355,3817.4,3817.3,10.59535314]
[1641391368950,4.12428355,3817.4,3817.3,11.59535314]
[1641391370151,4.12428355,3817.4,3817.3,11.60556803]
[1641391370352,4.12428355,3817.4,3817.3,4.27792008]
[1641391370553,4.12428355,3817.4,3817.3,3.97792008]
[1641391372007,4.42428355,3817.4,3817.3,3.97792008]
[1641391372210,4.42428355,3817.4,3817.3,2.97792008]
[1641391373407,4.12428355,3817.4,3817.3,2.97792008]
[1641391373808,4.42428355,3817.4,3817.3,2.97792008]
[1641391374108,4.12428355,3817.4,3817.3,2.97792008]
[1641391374310,4.12428355,3817.4,3817.3,3.27792008]
[1641391374506,4.12428355,3817.4,3817.3,5.84651483]
[1641391374746,4.12428355,3817.4,3817.3,6.84651483]
[1641391375147,4.12428355,3817.4,3817.3,4.27792008]
[1641391375348,4.12428355,3817.4,3817.3,3.27792008]
[1641391375747,0.56490257,3817.4,3817.3,3.27792008]
[1641391377649,0.56490257,3817.4,3817.3,2.97792008]
[1641391378688,0.56490257,3817.4,3817.3,3.30952031]
[1641391378988,0.56490257,3817.4,3817.3,3.00952031]
[1641391379599,0.56490257,3817.4,3817.3,3.30952031]
[1641391381293,0.56490257,3817.4,3817.3,6.12021901]
[1641391381695,0.56490257,3817.4,3817.3,7.82166924]
[1641391382157,0.56490257,3817.4,3817.3,5.01097054]
[1641391382943,0.56490257,3817.4,3817.3,3.30952031]
[1641391383350,0.56490257,3817.4,3817.3,3.31305954]
[1641391383748,0.56490257,3817.4,3817.3,5.01365838]
[1641391384350,0.56490257,3817.4,3817.1,4.71365838]
[1641391384551,1.88795114,3817.4,3817.1,4.71365838]
[1641391384753,0.57789114,3817.4,3817.1,4.71365838]
[1641391385650,0.57789114,3817.4,3817.1,5.26692081]
[1641391385896,0.57789114,3817.4,3817.1,4.71365838]
[1641391386303,0.56490257,3817.4,3817.1,4.71365838]
[1641391386500,0.56490257,3817.4,3817.1,5.01365838]
[1641391387101,0.56490257,3817.4,3817.1,5.66853838]
[1641391387601,0.56490257,3817.4,3817.2,1.27647637]
[1641391387803,0.56490257,3817.4,3817.2,1.80039537]
[1641391388602,0.56490257,3817.4,3817.2,0.523919]
[1641391388802,0.56490257,3817.4,3817.2,0.3]
[1641391389101,0.56490257,3817.4,3817.1,5.01365838]
[1641391389745,0.56490257,3817.4,3817.2,1.27585306]
[1641391390143,1.21983257,3817.4,3817.2,1.27585306]
[1641391390344,1.21983257,3817.4,3817.3,1.27585306]
[1641391391743,0.56490257,3817.4,3817.3,1.27585306]
[1641391393997,0.56490257,3817.4,3817.2,1.69890464]
[1641391394198,0.56490257,3817.4,3817.2,4.32133178]
[1641391394403,0.56490257,3817.4,3817.3,2.73310009]
[1641391394604,0.56490257,3817.4,3817.3,3.38794009]
[1641391395804,0.56490257,3817.4,3817.3,0.65484]
[1641391396003,0.56490257,3817.4,3817.3,1.69890464]
[1641391396202,0.000923,3817.5,3817.3,1.69890464]
[1641391396614,0.000923,3817.5,3817.1,6.44318397]
[1641391397005,0.000923,3817.5,3817.2,0.00113684]
[1641391397243,0.000923,3817.5,3817.3,0.03062003]
[1641391397846,0.000923,3817.5,3817.4,1.27688069]
[1641391398446,0.000923,3817.5,3817.3,0.03062003]
[1641391401908,0.000923,3817.5,3817.3,0.68546003]
[1641391402911,0.000923,3817.5,3817.3,0.03062003]
[1641391406850,0.65488,3817.7,3817.3,0.03062003]
[1641391407050,0.655803,3817.7,3817.3,0.03062003]
[1641391407250,0.00113685,3817.6,3817.3,0.03062003]
[1641391408496,0.00113685,3817.6,3817.3,1.34029003]
[1641391408702,0.00113685,3817.6,3817.4,2.66155296]
[1641391408901,0.00113685,3817.6,3817.3,0.68545003]
[1641391409504,0.00113685,3817.6,3817.3,0.03062003]
[1641391412747,0.65603685,3817.6,3817.3,0.03062003]
[1641391412944,0.65603685,3817.6,3817.3,1.34029003]
[1641391414044,0.65603685,3817.6,3817.3,0.68545003]
[1641391414249,0.65603685,3817.6,3817.3,0.03062003]
[1641391416295,0.00113685,3817.6,3817.3,0.03062003]
[1641391416491,0.00113685,3817.6,3817.4,0.65482]
[1641391416690,0.00113685,3817.6,3817.4,1.65482]
[1641391416995,0.00113685,3817.6,3817.5,11.004]
[1641391417194,0.00113685,3817.6,3817.5,12.11614733]
[1641391417595,0.00113685,3817.6,3817.5,14.11614733]
[1641391417794,0.00113685,3817.6,3817.5,14.41614733]
[1641391418194,0.00113685,3817.6,3817.5,17.82750409]
[1641391418398,4.3246985,3817.9,3817.6,4.0]
[1641391418903,0.00113685,3817.8,3817.7,1.1784569]
[1641391419745,0.00113685,3817.8,3817.7,3.90745155]
[1641391419945,0.00113685,3817.8,3817.7,4.03839465]
[1641391420445,0.00113685,3817.8,3817.7,1.3094]
[1641391420846,0.00194626,3817.8,3817.7,1.3094]
[1641391421046,0.00194626,3817.8,3817.6,3.62470112]
[1641391421449,0.00194626,3817.8,3817.6,3.72492319]
[1641391421845,0.00194626,3817.8,3817.6,3.75554001]
[1641391422246,0.00194626,3817.8,3817.7,3.42492319]
[1641391423247,0.00194626,3817.8,3817.6,3.75554001]
[1641391423894,0.00194626,3817.8,3817.6,4.41029001]
[1641391424100,1.30277804,3817.7,3817.6,0.03061682]
[1641391425795,1.30277804,3817.7,3817.6,1.74509771]
[1641391426400,1.30277804,3817.7,3817.6,0.03061682]
[1641391428242,1.30277804,3817.7,3817.6,1.74528252]
[1641391430895,1.30277804,3817.7,3817.6,0.03061682]
[1641391431495,1.30277804,3817.7,3817.6,1.74430784]
[1641391431698,1.30277804,3817.7,3817.6,0.03061682]
[1641391434206,1.30277804,3817.7,3817.6,1.74288351]
[1641391441397,5.50277804,3817.7,3817.6,1.74288351]
[1641391441597,1.30277804,3817.7,3817.6,1.71226669]
[1641391441797,1.60277804,3817.7,3817.6,1.71226669]
[1641391442450,1.60277804,3817.7,3817.5,12.29390022]
[1641391442451,6.75777804,3817.7,3817.5,12.29390022]
[1641391442651,6.82760976,3817.6,3817.5,12.29390022]
[1641391442852,4.0,3817.6,3817.5,12.29390022]
[1641391443050,4.0,3817.6,3817.5,7.05330022]
[1641391443251,4.0,3817.6,3817.5,5.7634]
[1641391443454,4.27003721,3817.6,3817.5,5.7634]
[1641391443655,0.27003721,3817.6,3817.5,5.7634]
[1641391444661,10.32964697,3817.6,3817.5,0.52247]
[1641391444857,11.32964697,3817.6,3817.5,0.52247]
[1641391445061,1.65203721,3817.6,3817.5,0.55308814]
[1641391445460,5.55203721,3817.6,3817.5,0.52247]
[1641391446092,4.0,3817.5,3817.0,1.28990022]
[1641391446293,0.65512,3817.2,3817.0,1.28990022]
[1641391446494,0.65512,3817.2,3817.1,0.00284212]
[1641391446695,0.95512,3817.2,3817.1,0.00284212]
[1641391446896,1.95512,3817.2,3817.1,0.00284212]
[1641391447300,1.95512,3817.2,3817.1,1.29274234]
[1641391447501,4.60330527,3817.2,3817.1,1.29274234]
[1641391447699,5.08585681,3817.2,3817.1,1.29274234]
[1641391448101,5.35589402,3817.2,3817.1,0.00284212]
[1641391452355,11.02539402,3817.2,3817.1,0.00284212]
[1641391452558,13.48927815,3817.2,3817.1,0.00284212]
[1641391452755,11.02539402,3817.2,3817.1,0.00284212]
[1641391453056,6.72539402,3817.2,3817.1,0.00284212]
[1641391453254,11.37539402,3817.2,3817.1,0.00284212]
[1641391453689,6.5,3817.1,3816.8,1.28990022]
[1641391453891,1.6924931,3817.0,3816.8,1.28990022]
[1641391454093,2.6924931,3817.0,3816.9,0.00113684]
[1641391454296,2.70496265,3817.0,3816.8,1.28990022]
[1641391454494,3.00496265,3817.0,3816.8,1.28990022]
[1641391454695,6.85,3816.9,3816.6,0.39431803]
[1641391454895,1.61466117,3816.8,3816.6,0.39431803]
[1641391455098,4.22529407,3816.8,3816.7,0.00113685]
[1641391455297,4.22529407,3816.8,3816.5,1.29378307]
[1641391455298,6.85,3816.7,3816.5,1.29378307]
[1641391455496,7.232,3816.6,3816.5,1.29378307]
[1641391455696,8.232,3816.6,3816.5,1.29378307]
[1641391455896,8.532,3816.6,3816.5,1.69199318]
[1641391456195,10.54184124,3816.6,3816.5,0.00113685]
[1641391456596,0.65532,3816.5,3816.3,0.00227369]
[1641391456798,7.132,3816.4,3816.3,0.00227369]
[1641391456997,7.432,3816.4,3816.3,0.00227369]
[1641391457245,7.432,3816.4,3816.2,0.00284212]
[1641391457451,10.7086535,3816.4,3816.2,0.00284212]
[1641391457755,10.97869071,3816.4,3816.2,0.00284212]
[1641391457949,7.85,3816.3,3816.2,0.00284212]
[1641391458149,8.232,3816.3,3816.2,0.00284212]
[1641391458951,8.50203721,3816.3,3816.2,0.00284212]
[1641391459953,5.2,3816.2,3816.1,0.33794686]
[1641391460258,7.53738,3816.2,3816.1,0.33794686]
[1641391460455,4.45,3816.1,3815.5,1.71226669]
[1641391460653,3.15660613,3816.0,3815.5,1.71226669]
[1641391460891,3.81198133,3816.0,3815.8,0.00227369]
[1641391461092,4.85,3815.9,3815.8,0.00227369]
[1641391461292,5.50203721,3815.9,3815.8,0.00227369]
[1641391461493,1.65203721,3815.9,3815.8,0.00227369]
[1641391461893,2.30741721,3815.9,3815.8,0.00227369]
[1641391464297,2.30741721,3815.9,3815.8,0.03290543]
[1641391464298,9.15741721,3815.9,3815.8,0.03290543]
[1641391464497,8.50203721,3815.9,3815.8,0.03290543]
[1641391464747,5.4,3815.8,3815.3,1.71226669]
[1641391464949,1.3109988,3815.6,3815.3,1.71226669]
[1641391465148,4.32167602,3815.5,3815.4,0.0022737]
[1641391465348,4.36629929,3815.4,3815.3,1.71226669]
[1641391465553,1.54829929,3815.4,3815.3,1.30002773]
[1641391465847,2.54829929,3815.4,3815.3,1.30002773]
[1641391466049,1.54829929,3815.4,3815.3,1.30002773]
[1641391466349,1.8183365,3815.4,3815.3,1.30002773]
[1641391466548,2.8183365,3815.4,3815.3,1.30002773]
[1641391466950,4.8183365,3815.4,3815.3,1.30002773]
[1641391467350,3.1555,3815.3,3815.2,1.30002773]
[1641391467549,4.8375,3815.3,3815.2,1.30002773]
[1641391467749,2.3375,3815.3,3815.2,1.30116457]
[1641391468153,1.22553721,3815.3,3815.2,1.30116457]
[1641391468395,0.92553721,3815.3,3815.2,1.30116457]
[1641391468989,0.6555,3815.3,3815.2,0.00113684]
[1641391469392,0.6555,3815.3,3815.2,1.71226669]
[1641391469592,0.9555,3815.3,3815.2,1.71226669]
[1641391469795,1.2555,3815.3,3815.2,1.71226669]
[1641391471097,2.29512299,3815.3,3815.2,1.71226669]
[1641391472258,4.05439109,3815.3,3815.0,1.71454038]
[1641391472458,10.36528109,3815.3,3815.0,1.71454038]
[1641391472657,10.36528109,3815.3,3815.1,0.00170527]
[1641391473265,9.60601299,3815.3,3815.2,1.30279743]
[1641391474966,8.95057299,3815.3,3815.1,0.00170527]
[1641391475364,8.95057299,3815.3,3814.9,0.00284211]
[1641391475564,0.65545,3815.1,3814.9,0.00284211]
[1641391475767,0.95545,3815.1,3814.9,0.00284211]
[1641391477598,4.93642781,3815.1,3814.9,0.00284211]
[1641391477797,2.68891249,3815.0,3814.9,0.00284211]
[1641391477999,2.63530613,3815.0,3814.9,0.00284211]
[1641391478402,2.95075731,3815.1,3814.9,0.00284211]
[1641391478899,2.6541734,3815.0,3814.9,1.7151088]
[1641391479100,2.95075731,3815.1,3814.9,1.7151088]
[1641391479501,2.95075731,3815.1,3815.0,0.00227369]
[1641391480251,5.60457386,3815.1,3815.0,0.00227369]
[1641391480448,2.95075731,3815.1,3815.0,0.00227369]
[1641391483152,3.25075731,3815.1,3815.0,0.00227369]
[1641391483395,3.25075731,3815.1,3815.0,1.71454038]
[1641391483799,4.25075731,3815.1,3815.0,1.71454038]
[1641391484198,6.87675717,3815.1,3815.0,1.71454038]
[1641391484396,4.25075731,3815.1,3815.0,1.71454038]
[1641391485000,4.25075731,3815.1,3815.0,0.00227369]
[1641391487748,4.25075731,3815.1,3814.8,2.10348898]
[1641391487749,4.25075731,3815.1,3814.9,0.00284211]
[1641391487950,0.3,3815.0,3814.9,0.00284211]
[1641391488351,3.66547882,3815.1,3814.9,0.00284211]
[1641391488552,2.66547882,3815.1,3814.9,0.00284211]
[1641391488752,1.91087,3815.1,3814.9,0.00284211]